Cogmind - Beta 11 @@@ ROGUE MODE // 2022.04.05 @ 18:40:26 Player: Nori Result: Destroyed by G-67 Veteran with Field Laser Performance ------------- Evolutions (6) 3000 Regions Visited (11) 2200 Robots Destroyed (47) 235 Value Destroyed (1784) 1784 Prototype IDs (11) 220 Alien Tech Used (0) 0 Bonus (522) 522 TOTAL SCORE: 7961 Bonus ------- High Alert Combat Kills 22 Entered DSFs 500 Cogmind --------- Core Integrity 0/1150 Matter 168/300 Energy 98/100 System Corruption 5% Temperature Cool (12) Movement Core (50) Location -4/Factory Parts ------- > --- POWER (2) -------- (None) > --- PROPULSION (6) --- (None) > --- UTILITY (9) ------ Enhanced Optical Array Advanced Targeting Computer Hacking Suite > --- WEAPON (2) ------- (None) > --- INVENTORY (5) ---- Fission Core Improved Cooling System Large Storage Unit Improved Phase Shifter Peak State ------------ > --- POWER ------------ Micro Nuclear Core Fission Core > --- PROPULSION ------- Cesium-ion Thruster Cesium-ion Thruster Xenon Bombardment Thruster Nuclear Pulse Thruster Nuclear Pulse Thruster > --- UTILITY ---------- Advanced Heat Sink Enhanced Optical Array Advanced Sensor Array Advanced Signal Interpreter Hacking Suite Hacking Suite > --- WEAPON ----------- Tesla Rifle Tesla Rifle > --- INVENTORY -------- Improved Cooling System Large Storage Unit Improved EM Pulse Cannon [Rating: 67] Favorites ----------- Power Micro Nuclear Core Engine Ion Engine Power Core Micro Nuclear Core Propulsion Improved Carbon-fiber Leg Leg Improved Carbon-fiber Leg Flight Unit Cesium-ion Thruster Utility Hacking Suite Device Improved Sensor Array Storage Large Storage Unit Processor Improved Signal Interpreter Hackware Hacking Suite Protection Improved Light Armor Plating Weapon Minigun Energy Gun Plasma Rifle Energy Cannon Proton Cannon Ballistic Gun Minigun Ballistic Cannon Advanced Assault Cannon Launcher Heavy Rocket Launcher Build | -11 -10 -9 -8 -7 -7 -6 -5 -5 -5 -5 -4 ------- Run | Scr Mat Mat Mat Fac DSF Fac Fac Ext Cet Arc Fac Slots Evolved 12 | . . 2 2 2 . 2 2 . . . 2 Power 1 | . . . . . . . 1 . . . . Propulsion 4 | . . 1 . . . 1 1 . . . 1 Utility 7 | . . 1 2 2 . 1 . . . . 1 Weapon . | . . . . . . . . . . . . Parts Attached 85 | 6 1 6 16 1 15 25 . 8 . . 7 Power 11 | 1 1 . 2 . 4 2 . 1 . . . Engine 3 | 1 1 . 1 . . . . . . . . Core 8 | . . . 1 . 4 2 . 1 . . . Reactor . | . . . . . . . . . . . . Propulsion 22 | 2 . 1 5 . 6 5 . 2 . . 1 Treads . | . . . . . . . . . . . . Leg 15 | 2 . 1 5 . 6 1 . . . . . Wheel . | . . . . . . . . . . . . Hover . | . . . . . . . . . . . . Flight 7 | . . . . . . 4 . 2 . . 1 Utility 29 | 1 . 3 9 1 1 10 . 2 . . 2 Device 9 | . . 1 2 1 . 2 . 2 . . 1 Storage 4 | 1 . . 2 . . 1 . . . . . Processor 7 | . . . 3 . . 3 . . . . 1 Hackware 2 | . . . . . . 2 . . . . . Protection 7 | . . 2 2 . 1 2 . . . . . Artifact . | . . . . . . . . . . . . Weapon 23 | 2 . 2 . . 4 8 . 3 . . 4 Energy Gun 8 | . . . . . . 5 . 2 . . 1 Energy Cannon 2 | . . . . . . 1 . . . . 1 Ballistic Gun 9 | 2 . 2 . . 3 2 . . . . . Ballistic Cannon 3 | . . . . . 1 . . . . . 2 Launcher 1 | . . . . . . . . 1 . . . Special Weapon . | . . . . . . . . . . . . Impact Weapon . | . . . . . . . . . . . . Slashing Weapon . | . . . . . . . . . . . . Piercing Weapon . | . . . . . . . . . . . . Special Melee Weapon . | . . . . . . . . . . . . Unidentified Prototypes . | . . . . . . . . . . . . Parts Lost 45 | . . . 1 . 18 13 . 4 1 . 8 Power 5 | . . . 1 . 2 1 . . . . 1 Propulsion 15 | . . . . . 6 3 . 1 . . 5 Utility 11 | . . . . . 4 3 . 2 . . 2 Weapon 14 | . . . . . 6 6 . 1 1 . . Highest Loss Streak 7 | . . . 1 . 7 3 . 4 1 . 5 To Critical Strikes . | . . . . . . . . . . . . Average Slot Usage (%) 70 | . 85 80 97 92 82 45 76 77 84 82 42 Engine 2 | . 14 11 5 . . . . . . . . Core 3 | . . . 3 7 6 4 5 5 11 11 3 Leg 13 | . 28 24 27 23 20 4 . . . . . Flight 4 | . . . . . . 3 23 22 29 29 10 Device 6 | . . 2 10 15 12 . 11 14 11 11 4 Storage 5 | . 14 11 9 7 7 2 . . . . . Processor 11 | . . . 15 15 15 13 11 11 11 11 11 Hackware 3 | . . . . . . 4 11 11 11 11 9 Protection 4 | . . 9 9 7 6 2 5 3 . . . Energy Gun 1 | . . . . . . 3 5 4 7 5 1 Ballistic Gun 9 | . 28 22 18 15 9 2 . . . . . Naked Turns . | . . . . . . . . . . . . Heaviest Build 40 | 10 12 20 37 38 40 34 17 28 28 23 25 Greatest Support 54 | 20 20 30 54 54 54 36 21 28 28 28 28 Greatest Overweight (x) 4 | 3 . . . . 2 4 . 1 . . 1 Average Overweight (x) . | . . . . . . . . . . . . Largest Inventory Capacity 15 | 8 8 8 15 15 15 15 5 5 5 5 5 Average Capacity 8 | 7 8 8 10 15 15 8 5 5 5 5 5 Most Carried 11 | 4 4 5 10 9 11 8 5 5 3 3 5 Average Carried 5 | 1 1 3 6 8 6 4 3 4 3 3 4 Final Capacity 15 | 8 8 8 15 15 15 5 5 5 5 5 5 Final Carried 9 | 1 3 3 8 9 4 3 5 3 3 3 4 Class Distribution -------------------- 70% | Mutant 15% | Hacker-Scout 6% | Hacker-Mutant 4% | Hacker-Sprinter 3% | Scavenger-Mutant Dominant Class ---------------- Mutant | -10/Materials Mutant | -9/Materials Mutant | -8/Materials Mutant | -7/Factory Mutant | -7/DSF Mutant | -6/Factory Hacker-Scout | -5/Factory Hacker-Scout | -5/Extension Hacker-Scout | -5/Cetus Hacker-Scout | -5/Archives Hacker-Mutant | -4/Factory Resources | -11 -10 -9 -8 -7 -7 -6 -5 -5 -5 -5 -4 ----------- Run | Scr Mat Mat Mat Fac DSF Fac Fac Ext Cet Arc Fac Matter Collected 1753 | 182 78 125 360 . 534 386 . 26 . . 62 Remotely . | . . . . . . . . . . . . Salvage Created 1952 | . 97 125 465 . 378 711 . 116 . . 60 Parts 113 | . 8 15 40 . 20 19 . 4 . . 7 Haulers Intercepted . | . . . . . . . . . . . . Recyclers Shooed . | . . . . . . . . . . . . Parts Field Recycled . | . . . . . . . . . . . . Retrieved Matter . | . . . . . . . . . . . . Parts Self-Destructed . | . . . . . . . . . . . . Prevented . | . . . . . . . . . . . . Kills | -11 -10 -9 -8 -7 -7 -6 -5 -5 -5 -5 -4 ------- Run | Scr Mat Mat Mat Fac DSF Fac Fac Ext Cet Arc Fac Combat Hostiles Destroyed 43 | . 4 2 13 . 9 11 . 3 . . 1 Guns 32 | . 4 2 13 . 5 7 . 1 . . . Cannons 5 | . . . . . 4 . . . . . 1 AOE 2 | . . . . . . . . 2 . . . Classes Destroyed 10 | . 2 2 2 . 2 2 . . . . . Builder 2 | . . . 1 . . 1 . . . . . Watcher 2 | . . 1 1 . . . . . . . . Swarmer 14 | . 3 . 7 . 3 . . 1 . . . Grunt 12 | . 1 . 2 . . 7 . 2 . . . Brawler 1 | . . . . . . 1 . . . . . Duelist 1 | . . . 1 . . . . . . . . Sentry 8 | . . 2 3 . 1 2 . . . . . Specialist 4 | . . . . . 4 . . . . . . Hunter 1 | . . . . . 1 . . . . . . Programmer 2 | . . . . . . 1 . . . . 1 Best Kill Streak 8 | . 3 2 8 . 4 3 . 3 . . 1 Combat Bots Only 8 | . 3 2 8 . 4 3 . 3 . . 1 Max Kills in Single Turn 1 | . 1 1 1 . 1 1 . 1 . . 1 Gunslinging . | . . . . . . . . . . . . Exploded 1 | . . . . . . . . 1 . . . Melee . | . . . . . . . . . . . . Uniques/NPCs Destroyed . | . . . . . . . . . . . . Combat | -11 -10 -9 -8 -7 -7 -6 -5 -5 -5 -5 -4 -------- Run | Scr Mat Mat Mat Fac DSF Fac Fac Ext Cet Arc Fac Damage Taken 7700 | . 97 92 564 . 2559 2043 . 609 33 28 1675 Core 2617 | . 24 . 72 . 426 777 . 166 . . 1152 Absorbed by Shields 35 | . . . . . . . . . . . 35 Regen/Repaired (Parts) 47 | . . . 19 . . . . . . . 28 Core Remaining (%) 72 | 100 90 100 86 . 39 8 . . . 83 . Volleys Fired 199 | . 12 8 44 . 33 69 . 8 . . 25 Largest 2 | . 2 2 2 . 2 2 . 1 . . 1 Hottest 123 | . 40 50 50 . 73 123 . 65 . . 69 Shots Fired 318 | . 24 16 88 . 59 98 . 8 . . 25 Gun 259 | . 24 16 88 . 40 87 . 4 . . . Cannon 55 | . . . . . 19 11 . . . . 25 Launcher 4 | . . . . . . . . 4 . . . Special . | . . . . . . . . . . . . Kinetic 235 | . 24 16 88 . 59 40 . . . . 8 Thermal 39 | . . . . . . 39 . . . . . Explosive 4 | . . . . . . . . 4 . . . Electromagnetic 40 | . . . . . . 19 . 4 . . 17 Robot Hit Streak 23 | . 4 5 12 . 10 23 . 2 . . 8 Robot Miss Streak 9 | . 3 2 9 . 3 3 . 3 . . 1 Penetration Max . | . . . . . . . . . . . . Secondary Targets 4 | . . . 3 . . 1 . . . . . Max Gunslinging Chain 1 | . . . 1 . . 1 . . . . . Shots Hit Robots 211 | . 11 10 51 . 39 79 . 3 . . 18 Core Hits 89 | . 7 4 23 . 14 28 . 5 . . 8 Critical Kills . | . . . . . . . . . . . . Critical Parts Destroyed 2 | . . . 1 . . 1 . . . . . Critical Strikes 5 | . . . 1 . 1 2 . . . . 1 Burn 1 | . . . . . . 1 . . . . . Destroy 2 | . . . 1 . . 1 . . . . . Blast 2 | . . . . . 1 . . . . . 1 Melee Attacks . | . . . . . . . . . . . . Impact . | . . . . . . . . . . . . Slashing . | . . . . . . . . . . . . Piercing . | . . . . . . . . . . . . Sneak Attacks . | . . . . . . . . . . . . Combat Hostiles . | . . . . . . . . . . . . Follow-up Attacks . | . . . . . . . . . . . . Damage Inflicted 4384 | . 81 170 901 . 853 1927 . 223 . . 229 Guns 3103 | . 81 170 901 . 449 1479 . 23 . . . Cannons 880 | . . . . . 365 291 . . . . 224 Explosions 310 | . . . . . . 110 . 200 . . . Melee . | . . . . . . . . . . . . Ramming 91 | . . . . . 39 47 . . . . 5 Kinetic 2769 | . 81 170 901 . 814 659 . . . . 144 Thermal 785 | . . . . . . 785 . . . . . Explosive 200 | . . . . . . . . 200 . . . Electromagnetic 539 | . . . . . . 436 . 23 . . 80 Impact . | . . . . . . . . . . . . Slashing . | . . . . . . . . . . . . Piercing . | . . . . . . . . . . . . Highest Corruption 5 | . . . . . . 5 1 1 1 1 5 Average Corruption 2 | . . . . . . 4 1 1 1 1 2 Corruption Purged . | . . . . . . . . . . . . Corruption Blocked . | . . . . . . . . . . . . Effects 14 | . . . . . . 4 . 3 1 . 6 Message Errors 3 | . . . . . . 1 . . . . 2 Matter Fused 6 | . . . . . . 2 . 2 . . 2 Energy Discharges 1 | . . . . . . 1 . . . . . Data Loss (minor) 1 | . . . . . . . . 1 . . . Data Loss (major) 2 | . . . . . . . . . . . 2 Alerts 1 | . . . . . . . . . 1 . . Overload Shots . | . . . . . . . . . . . . Overflow Damage 22 | . . . . . 1 . . . . . 21 Projectiles 22 | . . . . . 1 . . . . . 21 Explosions . | . . . . . . . . . . . . Melee . | . . . . . . . . . . . . Knockbacks 10 | . . . . . 6 1 . . . . 3 Impact 2 | . . . . . 1 1 . . . . . Kinetic 7 | . . . . . 4 . . . . . 3 Secondary 1 | . . . . . 1 . . . . . . Self-Inflicted Damage 124 | . . . . . . 59 . 63 . . 2 Shots 2 | . . . . . . 1 . 1 . . . Rammed 16 | . . . . . . 14 . . . . 2 Targets Rammed 22 | . . . . . 4 16 . . . . 2 Kicked 6 | . . . . . 4 2 . . . . . Crushed . | . . . . . . . . . . . . Highest Temperature 201 | . 6 38 23 . 2 201 . 3 . . . Average Temperature 41 | . 6 15 6 . 2 64 . 3 . . . Received Heat Transfer 1848 | . 6 27 153 . 666 876 . 54 9 . 57 Siege Activations . | . . . . . . . . . . . . Robots Corrupted 2 | . . . . . . 2 . . . . . Combat Hostiles 2 | . . . . . . 2 . . . . . Parts Fried 3 | . . . . . . 2 . . . . 1 Impact Corruptions . | . . . . . . . . . . . . Robots Melted 2 | . . . . . . 2 . . . . . Combat Hostiles 2 | . . . . . . 2 . . . . . Parts Melted 6 | . . . . . . 6 . . . . . Heat Transferred 1573 | . . . . . . 1573 . . . . . Parts Sabotaged . | . . . . . . . . . . . . Parts Stolen . | . . . . . . . . . . . . Parts Stripped . | . . . . . . . . . . . . Power Chain Reactions 2 | . . . . . . 2 . . . . . Missiles Intercepted . | . . . . . . . . . . . . Alert | -11 -10 -9 -8 -7 -7 -6 -5 -5 -5 -5 -4 ------- Run | Scr Mat Mat Mat Fac DSF Fac Fac Ext Cet Arc Fac Peak Influence 454 | . 138 147 454 206 173 180 76 295 179 130 150 Initial 206 | . . 57 61 206 48 61 64 37 164 70 45 Average 129 | . 67 88 271 135 109 81 68 132 172 93 91 Maximum Alert Level 2 | . . . 2 1 . . . 1 . . . Low Security (%) 85 | 100 100 100 43 50 100 100 100 87 100 100 100 Level 1 9 | . . . 30 49 . . . 12 . . . Level 2 5 | . . . 25 . . . . . . . . Level 3 . | . . . . . . . . . . . . Level 4 . | . . . . . . . . . . . . Level 5 . | . . . . . . . . . . . . High Security . | . . . . . . . . . . . . Max Security . | . . . . . . . . . . . . Sterilizations 1 | . . . . . 1 . . . . . . Squads Dispatched 18 | . 1 . 1 . 2 4 2 2 . . 6 Investigation 7 | . 1 . . . . 3 1 1 . . 1 Extermination 2 | . . . . . . 1 . . . . 1 Reinforcement 9 | . . . 1 . 2 . 1 1 . . 4 Assault . | . . . . . . . . . . . . Garrison . | . . . . . . . . . . . . Intercept . | . . . . . . . . . . . . Searches Triggered . | . . . . . . . . . . . . Construction Impeded 1 | . . . . . . . . . . . 1 Haulers Reinforced . | . . . . . . . . . . . . Active Scanning Responses . | . . . . . . . . . . . . Cargo Convoy Interrupts . | . . . . . . . . . . . . Stealth | -11 -10 -9 -8 -7 -7 -6 -5 -5 -5 -5 -4 --------- Run | Scr Mat Mat Mat Fac DSF Fac Fac Ext Cet Arc Fac Distress Signals 4 | . . . 1 . . . . 1 1 . 1 Communications Jammed . | . . . . . . . . . . . . Distress Signals . | . . . . . . . . . . . . Times Spotted 123 | . 5 3 29 . 16 17 1 19 5 4 24 Peak Tracking Total 18 | . 3 2 9 . 6 4 1 13 5 4 18 Tactical Retreats 17 | . 1 . 5 . 2 5 . 2 . . 2 Traps | -11 -10 -9 -8 -7 -7 -6 -5 -5 -5 -5 -4 ------- Run | Scr Mat Mat Mat Fac DSF Fac Fac Ext Cet Arc Fac Traps Triggered 3 | . . . . . 1 . . . . . 2 Indirectly . | . . . . . . . . . . . . Trap Hack Attempts . | . . . . . . . . . . . . Triggered . | . . . . . . . . . . . . Disarmed . | . . . . . . . . . . . . Reprogrammed . | . . . . . . . . . . . . Reused . | . . . . . . . . . . . . Traps Extracted . | . . . . . . . . . . . . Installed . | . . . . . . . . . . . . Triggered . | . . . . . . . . . . . . Machines | -11 -10 -9 -8 -7 -7 -6 -5 -5 -5 -5 -4 ---------- Run | Scr Mat Mat Mat Fac DSF Fac Fac Ext Cet Arc Fac Machines Disabled 2 | . . . 1 . . 1 . . . . . Max in Single Turn 1 | . . . 1 . . 1 . . . . . Garrison Access 1 | . . . . . . . 1 . . . . Machines Sabotaged . | . . . . . . . . . . . . Garrisons Compromised . | . . . . . . . . . . . . Overloaded Fab Kills . | . . . . . . . . . . . . Hacking | -11 -10 -9 -8 -7 -7 -6 -5 -5 -5 -5 -4 --------- Run | Scr Mat Mat Mat Fac DSF Fac Fac Ext Cet Arc Fac Machines Accessed 33 | . 3 2 4 2 . 6 7 5 1 . 3 Terminals 27 | . 3 2 3 2 . 3 6 5 1 . 2 Fabricators 2 | . . . . . . 2 . . . . . Repair Stations 2 | . . . 1 . . . . . . . 1 Recycling Units . | . . . . . . . . . . . . Scanalyzers 1 | . . . . . . 1 . . . . . Garrison Access 1 | . . . . . . . 1 . . . . Total Hacks 88 | . 10 9 8 7 . 17 20 10 2 . 5 Successful 59 | . 7 8 6 5 . 12 12 5 1 . 3 Failed 29 | . 3 1 2 2 . 5 8 5 1 . 2 Catastrophic 6 | . . . 2 . . 1 2 1 . . . Database Lockouts . | . . . . . . . . . . . . Manual 17 | . . 2 . 3 . 2 9 . 1 . . Terminals 75 | . 10 9 6 7 . 9 19 10 2 . 3 Fabricators 6 | . . . . . . 6 . . . . . Repair Stations 4 | . . . 2 . . . . . . . 2 Recycling Units . | . . . . . . . . . . . . Scanalyzers 2 | . . . . . . 2 . . . . . Garrison Access 1 | . . . . . . . 1 . . . . Terminal Hacks 48 | . 7 8 4 5 . 6 11 5 1 . 1 Record 12 | . 5 4 3 . . . . . . . . Part Schematic 2 | . . . . . . 1 1 . . . . Prototype ID Bank 5 | . 1 1 . . . 1 2 . . . . Open Door 4 | . . . . . . . . 3 1 . . Open DSF 3 | . . . . 1 . . 1 . . . 1 Branch Access Points 3 | . . 1 . 1 . . 1 . . . . Emergency Access Points 1 | . . . . . . . 1 . . . . Terminal Index 1 | . . . . . . . 1 . . . . Alert Level 7 | . . 2 1 1 . 3 . . . . . Unreport Threat 1 | . . . . 1 . . . . . . . Security Status 1 | . 1 . . . . . . . . . . Transport Status 1 | . . . . . . . 1 . . . . Hauler Manifests 3 | . . . . 1 . . 1 1 . . . Registered Components 3 | . . . . . . 1 1 1 . . . Registered Prototypes 1 | . . . . . . . 1 . . . . Fabricator Hacks 4 | . . . . . . 4 . . . . . Load Schematic 2 | . . . . . . 2 . . . . . Build 2 | . . . . . . 2 . . . . . Repair Station Hacks 4 | . . . 2 . . . . . . . 2 Scan Component 2 | . . . 1 . . . . . . . 1 Repair 2 | . . . 1 . . . . . . . 1 Recycling Unit Hacks . | . . . . . . . . . . . . Scanalyzer 2 | . . . . . . 2 . . . . . Insert Component 1 | . . . . . . 1 . . . . . Analyze 1 | . . . . . . 1 . . . . . Garrison Access Hacks 1 | . . . . . . . 1 . . . . Seal Access 1 | . . . . . . . 1 . . . . Unauthorized Hacks . | . . . . . . . . . . . . Terminals . | . . . . . . . . . . . . Fabricators . | . . . . . . . . . . . . Repair Stations . | . . . . . . . . . . . . Recycling Units . | . . . . . . . . . . . . Scanalyzers . | . . . . . . . . . . . . Garrison Access . | . . . . . . . . . . . . Data Cores Recovered . | . . . . . . . . . . . . Used . | . . . . . . . . . . . . Hacking Detections 26 | . 3 2 3 1 . 6 5 2 1 . 3 Full Trace Events 6 | . 1 . . . . 3 1 1 . . . Feedback Events 1 | . . . . . . . 1 . . . . Corruption 1 | . . . . . . . 1 . . . . Feedback Blocked . | . . . . . . . . . . . . Robot Schematics Acquired . | . . . . . . . . . . . . Robots Built . | . . . . . . . . . . . . Authchips . | . . . . . . . . . . . . Time . | . . . . . . . . . . . . Total Robot Build Rating . | . . . . . . . . . . . . Part Schematics Acquired 3 | . . . . . . 2 1 . . . . Parts Built 4 | . . . . . . 4 . . . . . Authchips . | . . . . . . . . . . . . Time 159 | . . . . . . 159 . . . . . Total Part Build Rating 24 | . . . . . . 24 . . . . . Parts Repaired 2 | . . . 1 . . . . . . . 1 Time 82 | . . . 38 . . . . . . . 44 Parts Recycled . | . . . . . . . . . . . . Recycled Matter . | . . . . . . . . . . . . Retrieved Matter . | . . . . . . . . . . . . Retrieved Components . | . . . . . . . . . . . . Parts Scanalyzed 1 | . . . . . . 1 . . . . . Part Schematics Acquired 1 | . . . . . . 1 . . . . . Parts Damaged . | . . . . . . . . . . . . Bothacking | -11 -10 -9 -8 -7 -7 -6 -5 -5 -5 -5 -4 ------------ Run | Scr Mat Mat Mat Fac DSF Fac Fac Ext Cet Arc Fac Used RIF Installer . | . . . . . . . . . . . . Robots Hacked . | . . . . . . . . . . . . Non-combat . | . . . . . . . . . . . . Combat . | . . . . . . . . . . . . Robot Hacks Applied . | . . . . . . . . . . . . Relay Couplers Released . | . . . . . . . . . . . . Fabnet Peak Effective % . | . . . . . . . . . . . . Robots Rewired . | . . . . . . . . . . . . Allies Hacked 1 | . . . . . . . . 1 . . . Hacks Repelled . | . . . . . . . . . . . . Allies | -11 -10 -9 -8 -7 -7 -6 -5 -5 -5 -5 -4 -------- Run | Scr Mat Mat Mat Fac DSF Fac Fac Ext Cet Arc Fac Total Allies 5 | . . . . . . . . 5 . . . Largest Group 5 | . . . . . . . . 5 . . . Highest-Rated Group 146 | . . . . . . . . 146 . . . Highest-Rated Ally 31 | . . . . . . . . 31 . . . Total Orders . | . . . . . . . . . . . . Ally Attacks 26 | . . . . . . . . 26 . . . Total Damage 467 | . . . . . . . . 467 . . . Kills 2 | . . . . . . . . 2 . . . Allies Corrupted . | . . . . . . . . . . . . Allies Melted . | . . . . . . . . . . . . Intel | -11 -10 -9 -8 -7 -7 -6 -5 -5 -5 -5 -4 ------- Run | Scr Mat Mat Mat Fac DSF Fac Fac Ext Cet Arc Fac Robot Analysis Total . | . . . . . . . . . . . . Derelict Logs Recovered . | . . . . . . . . . . . . Drone Launches 2 | . . . . . . . . . . . 2 Drone Recoveries . | . . . . . . . . . . . . Exploration | -11 -10 -9 -8 -7 -7 -6 -5 -5 -5 -5 -4 ------------- Run | Scr Mat Mat Mat Fac DSF Fac Fac Ext Cet Arc Fac Turns Passed 3759 | 57 194 253 782 185 358 1110 137 203 52 12 416 Spaces Moved 4046 | 39 132 180 465 152 174 1012 488 413 159 45 787 Core 289 | 19 . . . . . 209 . . . . 61 Treads . | . . . . . . . . . . . . Legs 1472 | 20 132 180 465 152 174 349 . . . . . Wheels . | . . . . . . . . . . . . Hover . | . . . . . . . . . . . . Flight 2285 | . . . . . . 454 488 413 159 45 726 Fastest Speed 26 | 50 120 120 120 120 110 27 27 26 26 26 26 Average Speed 69 | 114 120 120 120 120 128 82 27 27 26 26 35 Slowest Speed 270 | 200 120 120 120 120 270 250 27 110 26 26 50 Overloaded Moves . | . . . . . . . . . . . . Propulsion Burnouts . | . . . . . . . . . . . . Robots Hopped 25 | . . . . . . 2 3 12 2 1 5 Cave-ins Triggered . | . . . . . . . . . . . . Exploration Rate (%) 39 | 4 26 25 45 3 86 32 12 72 76 74 21 Regions Visited 11 Branch Regions 3 Pre-discovered Areas . | . . . . . . . . . . . . Known Exits Taken 7 | . . . 1 1 . 1 1 1 1 1 . Unknown Exits Taken 3 | 1 1 1 . . . . . . . . . Scrap Searched . | . . . . . . . . . . . . Spaces Dug . | . . . . . . . . . . . . Terrain Destroyed 96 | . . . . . . 23 . 68 . . 5 Melee . | . . . . . . . . . . . . Projectile 7 | . . . . . . 2 . . . . 5 AOE 88 | . . . . . . 20 . 68 . . . Terrain Rammed . | . . . . . . . . . . . . Walls Destroyed . | . . . . . . . . . . . . Machines Disabled . | . . . . . . . . . . . . Actions | -11 -10 -9 -8 -7 -7 -6 -5 -5 -5 -5 -4 --------- Run | Scr Mat Mat Mat Fac DSF Fac Fac Ext Cet Arc Fac Total 4700 | 51 148 204 623 154 256 1186 489 481 166 43 899 Wait 219 | . . . 55 . 16 27 3 55 10 . 53 Move 3986 | 38 131 179 464 151 173 1007 481 388 154 42 778 Hop 24 | . . . . . . 2 3 12 2 1 4 Pick Up 104 | 7 3 7 27 2 11 29 2 7 . . 9 Fast Attach . | . . . . . . . . . . . . Attach 64 | 6 . 3 4 1 12 24 . 7 . . 7 Detach 4 | . . . . . . 2 . . . . 2 Swap 21 | . 1 3 12 . 3 1 . 1 . . . Drop 44 | . 1 4 17 . 4 9 . 3 . . 6 Fire 199 | . 12 8 44 . 33 69 . 8 . . 25 Melee . | . . . . . . . . . . . . Ram 16 | . . . . . . 14 . . . . 2 Kick 6 | . . . . . 4 2 . . . . . Crush . | . . . . . . . . . . . . Escape Stasis 13 | . . . . . . . . . . . 13 Rewire . | . . . . . . . . . . . . Trap . | . . . . . . . . . . . . Miscellaneous . | . . . . . . . . . . . . Route ------- -11/Scrapyard -10/Materials -9/Materials (discovered 2 exits: *Mat / Min) -8/Materials -7/Factory (discovered 3 exits: Low x2 / DSF) -7/DSF -6/Factory -5/Factory (discovered 5 exits: *Fac / Upp x2 / *Ext x2) -5/Extension (discovered 2 exits: *Fac / *Cet) -5/Cetus (discovered 2 exits: *Fac / *Arc) -5/Archives -4/Factory (discovered 1 exit: *Res) History --------- Turn | Location | Event 3 | -11/Scrapyard | Discovered new exit (range 15) 58 | -11/Scrapyard | Entered Materials 176 | -10/Materials | Discovered new exit (range 4) 252 | -10/Materials | Entered another Materials area 252 | -9/Materials | Evolved 2 slots: Propulsion x1, Utility x1 313 | -9/Materials | Build established: Mutant 479 | -9/Materials | Identified exit to Mines 479 | -9/Materials | Discovered new exit (range 11) 505 | -9/Materials | Entered another Materials area 505 | -8/Materials | Evolved 2 slots: Utility x2 908 | -8/Materials | Destroyed 8 combat bots 1211 | -8/Materials | Discovered new exit (range 10) 1274 | -8/Materials | Repaired Imp. Sensor Array 1286 | -8/Materials | Identified exit to Factory 1287 | -8/Materials | Entered Factory 1287 | -7/Factory | Evolved 2 slots: Utility x2 1378 | -7/Factory | Identified exit to Lower Caves 1398 | -7/Factory | Identified exit to DSF 1472 | -7/Factory | Entered DSF 1496 | -7/DSF | Additional patrols routed to DSF 1676 | -7/DSF | Lost 7 parts (1p3n1u2w) 1754 | -7/DSF | Lost 4 parts (1p1n2w) 1784 | -7/DSF | Discovered new exit (range 12) 1802 | -7/DSF | Sterilization system engaged 1820 | -7/DSF | Lost 4 parts (1n2u1w) 1821 | -7/DSF | Core integrity fell below 50% 1822 | -7/DSF | Ambient heat levels rising (+10) 1829 | -7/DSF | Identified exit to Factory 1830 | -7/DSF | Entered Factory 1830 | -6/Factory | Evolved 2 slots: Propulsion x1, Utility x1 1860 | -6/Factory | Lost 3 parts (1n1u1w) 2151 | -6/Factory | Lost 3 parts (1u2w) 2555 | -6/Factory | Core integrity fell below 50% 2589 | -6/Factory | Lost 3 parts (1n1u1w) 2632 | -6/Factory | Core integrity fell below 20% 2727 | -6/Factory | Fabricated Mic. Fission Core? 2924 | -6/Factory | Discovered new exit (range 6) 2931 | -6/Factory | Identified exit to Factory 2940 | -6/Factory | Fabricated Mic. Fission Core? 2940 | -6/Factory | Entered another Factory area 2940 | -5/Factory | Evolved 2 slots: Power x1, Propulsion x1 2954 | -5/Factory | Discovered new exit (range 8) 2956 | -5/Factory | Identified exit to Factory 2957 | -5/Factory | Identified exit to DSF 2966 | -5/Factory | Identified exit to Upper Caves 2966 | -5/Factory | Identified exit to Extension 3077 | -5/Factory | Entered Extension 3105 | -5/Extension | Rescued a captive Derelict 3109 | -5/Extension | Rescued a captive Derelict 3115 | -5/Extension | Rescued a captive Derelict 3118 | -5/Extension | Rescued a captive Derelict 3131 | -5/Extension | Rescued a captive Derelict 3137 | -5/Extension | Spotted B-75 Beast 3194 | -5/Extension | Spotted B-75 Beast 3246 | -5/Extension | Build established: Hacker-Scout 3266 | -5/Extension | Discovered exit to Factory (range 10) 3266 | -5/Extension | Discovered new exit (range 6) 3267 | -5/Extension | Identified exit to Cetus 3275 | -5/Extension | Lost 4 parts (1n2u1w) 3280 | -5/Extension | Entered Cetus 3291 | -5/Cetus | Spotted Cetus Guard 3291 | -5/Cetus | Spotted Cetus Guard 3291 | -5/Cetus | Spotted Cetus Guard 3291 | -5/Cetus | Spotted Cetus Guard 3299 | -5/Cetus | Discovered exit to Factory (range 21) 3326 | -5/Cetus | Discovered new exit (range 21) 3331 | -5/Cetus | Identified exit to Archives 3332 | -5/Cetus | Entered Archives 3340 | -5/Archives | Unable to access archive contents 3341 | -5/Archives | Discovered exit to Factory (range 13) 3344 | -5/Archives | Entered Factory 3344 | -4/Factory | Evolved 2 slots: Propulsion x1, Utility x1 3497 | -4/Factory | Spotted B-86 Titan 3564 | -4/Factory | Lost 5 parts (1p2n2u) 3612 | -4/Factory | Repaired Xenon Bombardment Thruster 3648 | -4/Factory | Discovered new exit (range 6) 3651 | -4/Factory | Identified exit to Research 3754 | -4/Factory | Core integrity fell below 50% 3758 | -4/Factory | Core integrity fell below 20% 3760 | -4/Factory | Destroyed by G-67 Veteran with Field Laser Last Messages --------------- 03743_ Assembly Bed disabled. 03743_ Slammed into K-01 Serf. 03744_ Slammed into U-05 Engineer. 03744_ ALERT: Construction progress impeded, dispatching reinforcements to local area. 03748_ K-01 Serf cleans the DSF Access. 03750_ Slug penetrates Terminal. 03750_ Terminal disabled. 03751_ Connecting with DSF Access... 03751_ Penetrated by Slug. 03751_ Slug penetrates C-35 Carver. 03751_ C-35 Carver destroyed. 03752_ System corrupted: Substantial component data lost. 03752_ K-01 Serf collects debris. 03753_ Penetrated by Slug. 03755_ K-01 Serf collects debris. 03757_ Penetrated by Slug. 03757_ Slug penetrates Wall. 03758_ Penetrated by Slug. 03760_ K-01 Serf collects debris. Map ----- +----------------------------------------------------+ | | | | | | | | | | | | | | | | | | | | | | | | | | | | | | | | | | | ###?############################??????############ | | #?# # """"""""""" #??????# | | #?# # """"T"""" #??????# """ """ | | #?? # #??????# """ """ | | #???? ?# """"""""" #??????# """ """ | | #?????? ???# ######## "" "" | | #????####+####?# ] + # "" "" ] | | ###????#! [ ##########;###### # | | ######## * o g @ ### ###+######## | | A | | p g ### | | pkk c h g k #?# | | #### T## h gggg ############k#+##+### | | ???##### = #########gg #? ! # = ## | | ???????################# # #/ ## | | ?????????????# # # # ## | | ?????????????? """ """ + o # ## | | ?????????????? """ """ # # ! # ## | | ?????????????? """ """ # # # ![ ## | | ?????????????# ?# #? # * ## | | ?????????????# = ?# #? # ! ## | | ?????????????# ??# #?? ###########? | | ?????????????# ??# #??#######??????????? | | ?????????????#######???# #???????????????????? | | #??????????????????????# #???????????????????? | | #??????????????????????# #???????????????????? | | #??????????????????????# #???????????????????? | | #??????????????????????# #???????????????????? | | #??????????????????????# #???????????????????? | | #??????????????????????# ???????????????????? | | #??????????????????????# ???????????????????? | | #??????????????????????# ??????????????????? | | #??????????????????????# ??????????????????? | +----------------------------------------------------+ Best States ------------- Heat Dissipation 62 Energy Generation 28 Energy Capacity 500 Matter Stores 300 Matter Capacity 300 Sight Range 22 Robot Scan Range 16 Terrain Scan Density 10 Armor Coverage 150 Evasion (%) 74 Targeting Accuracy 8 Offensive Hacking 20 Item Schematics ----------------- Mic. Fission Core | -6/Factory | Hacked Imp. Heat Sink | -6/Factory | Scanalyzed Adv. Hacking Suite | -5/Factory | Hacked Robot Schematics ------------------ None Fabricated ------------ Mic. Fission Core | x2 | -6/Factory Mic. Fission Core | x2 | -6/Factory Alien Tech Used ----------------- None Achievements -------------- None Challenges ------------ None Game ------ Seed ResetLightpackSuperbattery Manual? 0 Play Time 01:17:46 Cumulative 123.7 hours Start 2022.04.05 @ 13:23:58 End 2022.04.05 @ 18:40:26 Sessions 1 Manual Loads 0 Difficulty Rogue Special Mode None Game No. 75 Rogue 75 Adventurer 0 Explorer 0 Win Type - Total 2 Types 0/0/0/2/0/0/0/0/0 Lore% 39 Gallery% 55 Achievement% 43 Wizard Run 0 Options --------- ASCII 0 Keyboard 0 Movement Numpad Keybinds 0 Fullscreen 2 Font 20/SmallcapsGlow Map View 66x50 Tactical HUD 1 Map Filters NONE Filters NONE Steam 1 RUN: 2f4db99d-afab-416d-a218-63e2558dab97